bitfinex/quotes_ETHUSD_20250629
["timestamp","ask_amount","ask_price","bid_price","bid_amount"]
[1751193945546,0.90340535,2448.6,2448.5,0.001]
[1751193945911,0.204,2448.6,2448.5,0.001]
[1751193947226,0.804,2448.6,2448.5,0.001]
[1751193951587,0.804,2448.6,2448.5,4.63513314]
[1751193951775,0.804,2448.6,2448.5,5.43483314]
[1751193951963,0.804,2448.6,2448.5,18.42783472]
[1751193952154,0.204,2448.6,2448.5,20.67904489]
[1751193952371,0.204,2448.6,2448.5,7.68604331]
[1751193952570,0.204,2448.6,2448.5,5.43483314]
[1751193953645,1.7,2449.5,2449.0,1.3497]
[1751193953851,4.08276813,2449.4,2449.0,1.3497]
[1751193954052,4.08263248,2449.4,2449.0,1.3497]
[1751193954252,10.0,2449.4,2449.0,5.43297748]
[1751193954621,10.0,2449.3,2449.0,1.3497]
[1751193954771,4.08292477,2449.3,2449.0,1.3497]
[1751193955157,14.55840633,2449.4,2449.0,1.3497]
[1751193955564,0.47568956,2449.4,2449.0,1.3497]
[1751193955766,15.78259606,2449.5,2449.0,5.43293905]
[1751193956349,11.7,2449.5,2449.0,1.3497]
[1751193956597,4.08269945,2449.4,2449.0,1.3497]
[1751193956769,4.08287798,2449.3,2449.0,1.3497]
[1751193957353,0.6,2449.1,2449.0,1.3497]
[1751193959266,0.6,2449.1,2449.0,5.4329993]
[1751193959489,0.804,2449.1,2449.0,6.38464299]
[1751193959787,0.804,2449.1,2449.0,5.4329993]
[1751193961901,0.6,2449.1,2449.0,5.4329993]
[1751193962683,1.718,2449.7,2449.6,0.55]
[1751193962908,4.38275134,2450.1,2449.6,1.3709]
[1751193963214,15.79965393,2450.0,2449.6,1.3709]
[1751193963411,17.78776186,2450.0,2449.6,1.3709]
[1751193963611,13.70610793,2450.0,2449.6,5.4531311]
[1751193963777,10.0,2450.0,2449.6,5.4531311]
[1751193963978,1.718,2450.1,2449.8,0.55]
[1751193964180,1.718,2450.1,2449.8,4.63194511]
[1751193965208,0.204,2449.8,2449.7,0.55]
[1751193965388,1.718,2450.1,2450.0,0.55]
[1751193965590,1.48732664,2450.3,2450.0,0.55]
[1751193965818,10.0,2450.4,2450.0,0.55]
[1751193966115,11.72,2450.5,2450.3,0.55]
[1751193966321,15.80081621,2450.5,2450.3,0.55]
[1751193966823,11.72,2450.5,2450.3,0.55]
[1751193967202,0.002,2450.5,2450.4,7.9743]
[1751193967522,0.206,2450.5,2450.4,7.9743]
[1751193968421,0.206,2450.5,2450.4,1.3303]
[1751193968625,0.206,2450.5,2450.4,7.9873]
[1751193969340,0.806,2450.5,2450.4,0.55]
[1751193970727,4.88679983,2450.5,2450.4,0.55]
[1751193971440,0.806,2450.5,2450.4,0.55]
[1751193971741,0.806,2450.5,2450.4,1.3204]
[1751193974550,0.806,2450.5,2450.4,5.40136637]
[1751193974723,0.602,2450.5,2450.4,6.60721358]
[1751193975057,0.002,2450.5,2450.4,16.81121358]
[1751193976324,0.002,2451.5,2451.3,0.55]
[1751193976528,0.002,2451.5,2451.4,12.04170162]
[1751193977759,0.002,2451.5,2451.4,7.9624]
[1751193977966,0.002,2451.5,2451.4,7.9654]
[1751193981258,0.1952,2451.6,2451.5,0.55]
[1751193982467,0.1952,2451.6,2451.5,1.75448513]
[1751193984167,4.27416883,2451.6,2451.5,8.40348513]
[1751193984464,5.79514999,2452.1,2451.5,12.48262035]
[1751193984465,4.07824507,2452.1,2451.5,12.48262035]
[1751193984633,4.07824507,2452.1,2451.7,0.55]
[1751193984835,4.07831442,2452.0,2451.7,7.198]
[1751193985036,4.07821795,2452.1,2451.7,7.198]
[1751193985263,0.2032,2451.8,2451.7,11.27675715]
[1751193985451,0.2032,2451.8,2451.7,8.85403083]
[1751193985787,0.2032,2451.8,2451.7,12.93283329]
[1751193986073,0.2032,2452.1,2452.0,4.62830342]
[1751193986253,0.2032,2452.1,2452.0,7.197]
[1751193987434,0.2032,2452.1,2452.0,11.27530342]
[1751193987636,0.2032,2452.1,2452.0,7.197]
[1751193988170,0.2032,2452.1,2452.0,11.27530342]
[1751193989067,0.2032,2452.1,2452.0,12.03430342]
[1751193989563,0.2032,2452.1,2452.0,7.956]
[1751193990076,1.72,2452.7,2452.3,0.55]
[1751193990364,1.72,2452.7,2452.0,9.01730169]
[1751193990365,0.2032,2452.7,2452.5,4.62737349]
[1751193990578,0.2032,2452.7,2452.4,11.48156214]
[1751193990782,0.2032,2452.7,2452.5,4.62738484]
[1751193990944,0.2032,2452.7,2452.6,4.62730571]
[1751193991152,0.002,2452.8,2452.7,0.55]
[1751193991769,0.002,2452.8,2452.7,7.196]
[1751193992883,0.002,2452.8,2452.7,12.03213947]
[1751193993212,0.002,2452.8,2452.7,13.64308143]
[1751193993412,0.002,2452.8,2452.7,13.84628143]
[1751193993700,0.002,2452.8,2452.7,23.84628143]
[1751193994695,0.002,2452.8,2452.7,17.20028143]
[1751193994896,0.002,2452.8,2452.7,18.21340164]
[1751193995098,0.002,2452.8,2452.7,26.58240164]
[1751194003935,0.002,2452.8,2452.7,18.21340164]
[1751194004136,0.002,2452.8,2452.7,1.21632021]
[1751194004342,0.002,2452.8,2452.7,7.65912021]
[1751194005027,0.002,2452.8,2452.7,8.20812021]
[1751194005524,0.002,2452.8,2452.7,7.65812021]
[1751194005934,0.002,2452.8,2452.7,12.28525968]
[1751194007169,0.002,2452.8,2452.7,13.92153218]
[1751194007352,0.002,2452.8,2452.7,14.12473218]
[1751194008927,0.002,2452.8,2452.7,14.88113218]
[1751194015365,0.002,2452.8,2452.7,12.48845968]
[1751194017669,0.002,2452.8,2452.7,11.72525968]
[1751194017965,0.002,2452.8,2452.7,12.27525968]
[1751194019402,0.002,2452.8,2452.7,8.19812021]
[1751194021989,0.002,2452.8,2452.7,12.27525968]
[1751194022979,0.002,2452.8,2452.7,8.19812021]
[1751194023761,0.002,2452.8,2452.7,12.27525968]
[1751194023962,0.002,2452.8,2452.7,13.91051599]
[1751194025106,0.002,2452.8,2452.7,14.73611599]
[1751194025974,0.002,2452.8,2452.7,8.20312021]
[1751194026174,0.002,2452.8,2452.7,12.28025968]
[1751194026393,0.002,2452.8,2452.7,8.20312021]
[1751194027075,0.002,2452.8,2452.7,12.28025968]
[1751194027276,0.002,2452.8,2452.7,8.20312021]
[1751194027596,0.7557,2452.7,2451.9,2.5406]
[1751194027800,0.7557,2452.7,2451.7,9.789]
[1751194027801,0.2032,2452.2,2451.7,1.0288]
[1751194027991,4.83368767,2452.2,2451.7,4.07867854]
[1751194028189,0.2032,2452.0,2451.8,6.644]
[1751194028389,0.2032,2452.0,2451.9,0.55]
[1751194028588,0.2032,2452.0,2451.8,6.644]
[1751194028770,0.2032,2452.0,2451.6,4.07890999]
[1751194028970,0.2032,2452.0,2451.7,6.644]
[1751194029295,0.2032,2452.0,2451.7,10.72279007]
[1751194029506,0.2032,2452.0,2451.8,0.55]
[1751194029671,0.2032,2452.0,2451.9,7.194]
[1751194030403,0.2032,2452.0,2451.9,7.195]
[1751194031399,0.2032,2452.0,2451.9,0.55]
[1751194031601,0.2032,2452.0,2451.9,7.194]
[1751194032109,0.2032,2452.0,2451.9,0.55]
[1751194032321,0.2032,2452.0,2451.9,7.193]
[1751194032608,0.2032,2452.0,2451.9,11.27146975]
[1751194032772,0.2032,2452.0,2451.9,7.193]
[1751194034711,0.2032,2452.0,2451.9,7.19]
[1751194035010,0.2032,2452.0,2451.9,11.26846975]
[1751194035374,0.2032,2452.0,2451.9,7.19]
[1751194035574,0.2032,2452.0,2451.9,11.26846975]
[1751194037744,0.2032,2452.0,2451.9,7.19]
[1751194038213,0.2032,2452.0,2451.9,0.55]
[1751194038727,0.2032,2452.0,2451.9,7.187]
[1751194041742,4.28150342,2452.0,2451.9,7.187]
[1751194042038,4.28150342,2452.0,2451.9,0.55]
[1751194042249,5.19303272,2452.0,2451.9,7.184]
[1751194042429,5.19303272,2452.0,2451.9,0.55]
[1751194042942,1.1147293,2452.0,2451.9,0.55]
[1751194043436,1.9261293,2452.0,2451.3,0.2032]
[1751194043735,0.2032,2451.6,2451.4,10.71422819]
[1751194043925,4.07854365,2451.9,2451.5,0.55]
[1751194044136,4.97537481,2451.9,2451.5,0.55]
[1751194045267,0.6,2451.7,2451.5,0.55]
[1751194046019,0.6,2451.7,2451.5,4.62911721]
[1751194046525,0.6,2451.7,2451.5,0.55]
[1751194046728,0.6,2451.7,2451.5,4.62913242]
[1751194047153,0.6,2451.7,2451.5,0.55]
[1751194050333,0.2032,2451.5,2451.4,0.55]
[1751194050633,0.2032,2451.5,2451.4,7.181]
[1751194052797,0.2032,2451.5,2451.4,7.179]
[1751194053981,0.2032,2451.5,2451.4,0.55]
[1751194057479,4.28233522,2451.5,2451.4,0.55]
[1751194057682,0.2032,2451.5,2451.4,0.55]
[1751194061983,0.2032,2451.5,2451.4,5.40620162]
[1751194063017,0.2032,2451.5,2451.4,7.173]
[1751194063311,0.2032,2451.5,2451.4,0.55]
[1751194063517,0.2032,2451.5,2451.4,7.173]
[1751194064319,5.09423522,2451.5,2451.4,0.55]
[1751194064515,6.01155715,2451.5,2451.4,0.55]
[1751194064704,6.01155715,2451.5,2451.4,7.173]
[1751194065016,6.01155715,2451.5,2451.4,0.55]
[1751194065395,4.07939538,2451.4,2450.7,0.79]
[1751194065715,0.204,2450.9,2450.8,6.629]
[1751194065916,0.204,2450.9,2450.8,7.179]
[1751194066485,0.204,2450.9,2450.8,11.25930031]
[1751194067020,0.204,2450.9,2450.8,0.55]
[1751194067223,0.204,2450.9,2450.8,7.178]
[1751194069214,0.204,2450.9,2450.8,0.55]
[1751194069414,0.204,2450.9,2450.8,7.176]
[1751194069724,0.204,2450.9,2450.8,0.55]
[1751194069925,0.204,2450.9,2450.8,7.176]
[1751194072227,0.204,2450.9,2450.8,0.55]
[1751194073094,0.204,2450.9,2450.8,4.63030031]
[1751194074035,0.204,2450.9,2450.8,6.98838638]
[1751194075811,10.7894,2451.5,2450.9,0.55]
[1751194076017,10.7894,2451.5,2451.1,0.55]
[1751194076018,14.86863214,2451.5,2451.1,0.55]
[1751194076741,14.86856357,2451.5,2451.1,4.6297824]
[1751194077039,10.7894,2451.5,2451.1,4.6297824]
[1751194077417,1.713,2451.6,2451.3,0.55]
[1751194077637,6.62353452,2451.6,2451.3,0.55]
[1751194077803,0.2032,2451.3,2451.1,4.62972077]
[1751194079331,0.2032,2451.3,2451.2,4.62963446]
[1751194080933,1.707,2451.8,2451.3,4.6293196]
[1751194081133,0.2032,2451.6,2451.5,0.55]
[1751194083158,0.2032,2451.6,2451.5,5.45353522]
[1751194083463,0.2032,2451.7,2451.6,4.62896883]
[1751194084061,0.2032,2451.7,2451.6,0.55]
[1751194084562,0.2032,2451.7,2451.6,4.62896883]
[1751194085065,0.2032,2451.7,2451.6,0.55]
[1751194089252,0.2032,2451.7,2451.6,4.62896883]
[1751194089474,0.2032,2451.7,2451.6,5.83670571]
[1751194089837,0.2032,2451.7,2451.6,4.62896883]
[1751194091372,11.707,2452.2,2451.9,0.55]
[1751194092877,15.7850566,2452.2,2451.9,0.55]
[1751194096395,4.07817532,2452.1,2451.9,0.55]
[1751194097597,15.78506309,2452.2,2451.9,0.55]
[1751194097794,17.84880647,2452.2,2451.9,0.55]
[1751194099098,4.07823312,2452.1,2451.9,0.55]
[1751194099862,4.07830342,2452.0,2451.9,0.55]
[1751194101798,4.28168796,2451.9,2451.8,0.55]
[1751194101971,0.2032,2451.9,2451.8,0.55]
[1751194102384,4.28166975,2451.9,2451.8,0.55]
[1751194104699,0.2032,2451.9,2451.8,0.55]
[1751194105182,4.28166975,2451.9,2451.8,0.55]
[1751194106817,0.2032,2451.9,2451.8,0.55]
[1751194107906,4.28166975,2451.9,2451.8,0.55]
[1751194108412,0.2032,2451.9,2451.8,0.55]
[1751194109980,0.2032,2451.9,2451.8,1.3335]
[1751194110186,0.2032,2451.9,2451.8,2.12795]
[1751194111016,0.2032,2451.9,2451.8,6.2065861]
[1751194112217,4.07786071,2452.3,2452.0,0.55]
[1751194112405,0.2032,2452.1,2452.0,0.55]
[1751194112605,0.2032,2452.1,2451.9,0.55]
[1751194114288,0.2032,2452.1,2452.0,4.07830342]
[1751194114493,1.696,2452.5,2452.3,0.55]
[1751194114696,0.2032,2452.5,2452.3,4.62772483]
[1751194115020,0.2032,2452.5,2452.3,0.55]
[1751194117435,0.2032,2452.5,2452.3,4.62780377]
[1751194117935,0.2032,2452.5,2452.3,0.55]
[1751194118136,0.2032,2452.5,2452.4,4.62763823]
[1751194118606,0.2032,2452.5,2452.4,6.29204843]
[1751194119451,0.2032,2452.5,2452.4,2.2144102]
[1751194119652,0.2032,2452.5,2452.4,0.55]
[1751194120230,0.2032,2452.5,2452.4,4.62763823]
[1751194120752,0.2032,2452.5,2452.4,0.55]
[1751194125858,0.2032,2452.5,2452.4,4.62763823]
[1751194126028,0.2032,2452.5,2452.4,0.55]
[1751194126233,0.2032,2452.5,2452.4,4.62763823]
[1751194126435,0.2032,2452.5,2452.4,0.55]
[1751194128165,0.2032,2452.5,2452.4,4.62763823]
[1751194128369,0.2032,2452.7,2452.5,4.62743782]
[1751194128547,0.2032,2452.7,2452.6,7.149]
[1751194129074,0.2032,2452.7,2452.6,12.34894949]
[1751194129250,0.002,2452.8,2452.7,0.55]
[1751194131340,0.002,2452.8,2452.7,7.149]
[1751194137273,0.002,2452.8,2452.7,11.22613947]
[1751194138085,0.002,2452.8,2452.7,7.149]
[1751194138384,0.002,2452.8,2452.7,11.22613947]
[1751194139888,0.002,2452.8,2452.7,12.01523947]
[1751194140470,0.002,2452.8,2452.7,13.62449266]
[1751194146799,0.002,2452.8,2452.7,13.32449266]
[1751194147204,0.002,2452.8,2452.7,25.01749266]
[1751194147370,0.002,2452.8,2452.7,25.22069266]
[1751194149108,0.002,2452.8,2452.7,23.82569266]
[1751194150494,0.002,2452.8,2452.7,6.67869266]
[1751194150697,0.002,2452.8,2452.7,11.66643947]
[1751194151089,0.002,2452.8,2452.7,12.21643947]
[1751194158137,0.002,2452.8,2452.7,22.21643947]
[1751194158635,0.002,2452.8,2452.7,15.61943947]
[1751194158795,0.002,2452.8,2452.7,12.21543947]
[1751194158992,0.002,2452.8,2452.7,14.01401266]
[1751194160592,0.002,2452.8,2452.7,13.22491266]
[1751194161528,0.002,2452.8,2452.7,6.62891266]
[1751194161730,0.002,2452.8,2452.7,13.22491266]
[1751194162431,0.002,2452.8,2452.7,14.01841266]
[1751194163147,0.002,2452.8,2452.7,24.01841266]
[1751194163730,0.002,2452.8,2452.7,14.01841266]
[1751194163902,0.002,2452.8,2452.7,24.01841266]
[1751194167420,0.002,2453.2,2453.1,4.62647466]
[1751194167738,0.002,2453.2,2453.1,12.86518318]
[1751194167903,0.002,2453.2,2453.1,13.06838318]
[1751194168600,0.002,2453.2,2453.1,6.47238318]
[1751194168798,0.002,2453.2,2453.1,14.76338318]
[1751194169200,0.002,2453.2,2453.1,24.76338318]
[1751194169641,0.002,2453.2,2453.1,24.76438318]
[1751194169806,0.002,2453.2,2453.1,24.76738318]
[1751194170951,0.002,2453.2,2453.1,16.47238318]
[1751194171158,0.002,2453.2,2453.1,24.76738318]
[1751194171943,0.002,2453.3,2453.2,15.43590849]
[1751194172243,0.002,2453.3,2453.2,17.35517774]
[1751194175051,0.002,2453.3,2453.2,25.64917774]
[1751194176547,0.002,2453.3,2453.2,17.35517774]
[1751194176746,0.002,2453.3,2453.2,25.65017774]
[1751194179262,0.002,2453.3,2453.2,17.35517774]
[1751194179559,0.002,2453.3,2453.2,25.64917774]
[1751194180843,0.002,2453.3,2453.2,19.04917774]
[1751194181044,0.002,2453.3,2453.2,25.64817774]
[1751194181428,0.002,2453.3,2453.2,17.35517774]
[1751194181629,0.002,2453.3,2453.2,25.64817774]
[1751194184171,0.002,2453.3,2453.2,5.99557774]
[1751194184465,0.002,2453.3,2453.2,12.37030849]
[1751194184668,0.002,2453.3,2453.2,12.92030849]
[1751194185232,0.002,2453.3,2453.2,13.72140849]
[1751194185428,0.002,2453.3,2453.2,12.92030849]
[1751194186546,0.002,2453.3,2453.2,14.64030681]
[1751194186955,0.002,2453.3,2453.2,25.44140681]
[1751194188179,0.002,2453.5,2453.4,5.42707619]
[1751194188386,0.002,2453.5,2453.4,12.03107619]
[1751194188548,0.002,2453.5,2453.4,12.23427619]
[1751194188749,0.002,2453.5,2453.4,14.91403719]
[1751194193355,0.002,2453.6,2453.4,24.91403719]
[1751194193553,0.002,2453.6,2453.5,5.37611006]
[1751194198598,0.002,2453.7,2453.6,14.62564395]
[1751194198902,0.002,2453.7,2453.6,21.22964395]
[1751194199101,0.002,2453.7,2453.6,23.23141714]
[1751194203636,0.002,2453.7,2453.6,16.62741714]
[1751194203934,0.002,2453.7,2453.6,24.92441714]
[1751194206533,0.002,2454.3,2453.7,15.38777784]
[1751194207838,0.002,2454.3,2453.7,15.59165171]
[1751194208045,0.002,2454.3,2453.7,17.31165003]
[1751194208626,0.002,2454.3,2453.7,17.10777616]
[1751194209757,0.002,2454.3,2454.2,4.62464754]
[1751194209958,0.002,2454.3,2454.2,21.22264754]
[1751194210146,0.002,2454.3,2454.2,21.42584754]
[1751194210465,0.002,2454.3,2454.2,24.10560854]
[1751194215147,0.002,2454.5,2454.4,14.62431551]
[1751194215344,0.002,2454.5,2454.4,21.21831551]
[1751194215651,0.002,2454.5,2454.4,22.19051551]
[1751194217899,0.002,2454.7,2454.6,14.62398354]
[1751194218036,0.002,2454.7,2454.6,24.71155673]
[1751194218377,0.002,2454.7,2454.6,24.91475673]
[1751194234289,0.002,2454.7,2454.6,24.90775673]
[1751194238132,0.002,2454.7,2454.6,15.96818354]
[1751194238430,0.002,2454.7,2454.6,23.10918354]
[1751194264562,0.002,2454.7,2454.6,14.82718354]
[1751194264756,0.002,2454.7,2454.6,23.10618354]
[1751194267857,0.002,2454.7,2454.6,14.82718354]
[1751194268062,0.002,2454.7,2454.6,25.53785358]
[1751194268662,0.002,2454.7,2454.6,17.25885358]
[1751194268862,0.002,2454.7,2454.6,15.96718354]
[1751194269030,0.002,2454.7,2454.6,22.55618354]
[1751194269232,0.002,2454.7,2454.6,23.10618354]
[1751194269762,0.002,2454.7,2454.6,14.82718354]
[1751194269944,0.7738,2454.7,2454.6,16.51718354]
[1751194270269,0.7738,2454.7,2454.6,23.10618354]
[1751194272064,0.002,2454.7,2454.6,23.10618354]
[1751194273561,0.002,2454.7,2454.6,26.28921358]
[1751194277967,0.002,2454.8,2454.7,15.39111757]
[1751194278556,0.002,2454.8,2454.7,23.67011757]
[1751194279073,0.002,2454.8,2454.7,16.31381757]
[1751194279373,0.002,2454.8,2454.7,23.69581757]
[1751194279568,0.002,2454.8,2454.7,26.71112004]
[1751194279973,0.002,2454.8,2454.7,17.63912004]
[1751194280178,0.002,2454.8,2454.7,25.91712004]
[1751194286101,0.002,2454.8,2454.7,26.69152004]
[1751194290301,0.002,2454.8,2454.7,18.41352004]
[1751194290605,0.002,2454.8,2454.7,26.69152004]
[1751194290973,0.002,2454.8,2454.7,18.41352004]
[1751194291197,0.002,2454.8,2454.7,26.69152004]
[1751194293593,0.002,2454.8,2454.7,18.41352004]
[1751194293798,0.002,2454.8,2454.7,19.32912004]
[1751194294002,0.002,2454.8,2454.7,25.91712004]
[1751194299021,0.002,2454.8,2454.7,4.62381757]
[1751194299326,0.002,2454.8,2454.7,6.31381757]
[1751194299510,0.002,2454.8,2454.7,12.90181757]
[1751194301712,0.002,2454.8,2454.7,4.62381757]
[1751194301914,0.002,2454.8,2454.7,12.90181757]
[1751194303922,0.002,2454.8,2454.7,15.02712936]
[1751194304930,0.002,2454.8,2454.7,12.90181757]
[1751194315551,0.002,2454.8,2454.7,22.90181757]
[1751194315864,0.002,2454.8,2454.7,23.69391757]
[1751194321069,0.002,2454.8,2454.7,6.31381757]
[1751194321266,0.002,2454.8,2454.7,12.90081757]
[1751194321679,0.002,2454.8,2454.7,15.08441936]
[1751194325588,0.002,2454.8,2454.7,15.28761936]
[1751194330252,0.002,2454.8,2454.7,25.28761936]
[1751194330749,0.002,2454.8,2454.7,26.07471936]
[1751194332051,0.002,2455.1,2455.0,15.41041975]
[1751194332269,0.002,2455.1,2455.0,21.99741975]
[1751194332596,0.002,2455.1,2455.0,22.20061975]
[1751194339072,0.002,2455.1,2455.0,23.88861975]
[1751194347508,0.002,2455.1,2455.0,28.53861975]
[1751194347816,0.002,2455.1,2455.0,29.53848018]
[1751194356358,0.002,2455.5,2455.3,1.3725]
[1751194356650,0.002,2455.5,2455.4,22.02915618]
[1751194356813,0.002,2455.5,2455.4,22.23235618]
[1751194359375,0.002,2455.5,2455.4,15.64835618]
[1751194359681,0.002,2455.5,2455.4,25.28145797]
[1751194360740,0.002,2455.5,2455.4,18.14745797]
[1751194360944,0.002,2455.5,2455.4,24.73145797]
[1751194361145,0.002,2455.5,2455.4,25.28145797]
[1751194362777,0.002,2455.5,2455.4,23.09785618]
[1751194373613,0.002,2455.5,2455.4,16.51385618]
[1751194373800,0.002,2455.5,2455.4,23.09685618]
[1751194385985,0.002,2455.5,2455.4,28.52125618]
[1751194388606,0.002,2455.7,2455.5,5.39599032]
[1751194388806,0.002,2455.7,2455.5,9.06255388]
[1751194390397,0.7426,2456.2,2456.1,4.62149546]
[1751194390598,0.7426,2456.2,2456.1,11.20249546]
[1751194390802,0.7426,2456.2,2456.1,11.40569546]
[1751194391943,0.001,2456.5,2456.2,4.62132969]
[1751194393235,0.001,2456.5,2456.2,16.15323821]
[1751194397345,0.001,2456.5,2456.2,6.15323821]
[1751194399424,0.001,2456.5,2456.2,16.15323821]
[1751194400320,0.001,2456.5,2456.2,16.91303821]
[1751194400955,0.001,2456.5,2456.4,14.6209982]
[1751194401126,0.001,2456.5,2456.4,22.96065863]
[1751194402773,0.001,2457.2,2456.5,37.92756748]
[1751194403069,0.001,2457.2,2456.5,40.37336748]
[1751194403273,0.001,2457.2,2456.5,47.06663248]
[1751194403478,0.001,2457.2,2457.1,14.61983842]
[1751194403692,0.001,2457.2,2457.1,25.10582226]
[1751194404476,0.001,2457.2,2457.1,25.30902226]
[1751194406567,0.2202889,2457.9,2457.8,4.0686793]
[1751194406788,0.2202889,2457.9,2457.8,13.0858793]
[1751194407296,0.2202889,2457.9,2457.8,23.0858793]
[1751194407566,0.2202889,2457.9,2457.8,26.04945902]
[1751194408156,0.11024782,2458.2,2458.1,4.06818274]
[1751194408336,0.11024782,2458.2,2458.1,11.19518274]
[1751194408537,0.11024782,2458.2,2458.1,11.39838274]
[1751194408867,0.11024782,2458.2,2458.1,4.82138274]
[1751194409081,0.90724782,2458.2,2458.1,13.08438274]
[1751194412446,0.90724782,2458.2,2458.1,13.08238274]
[1751194416484,0.90724782,2458.2,2458.1,9.0142]
[1751194416673,0.90724782,2458.2,2458.1,13.08238274]
[1751194416986,0.90724782,2458.2,2458.1,0.7532]
[1751194417146,0.90724782,2458.2,2458.1,0.55]
[1751194417353,0.7508,2458.0,2457.7,4.27192743]
[1751194417688,0.7508,2458.0,2457.8,10.64359215]
[1751194418065,0.7508,2458.0,2457.8,6.575]
[1751194418659,0.7508,2457.8,2456.9,4.07215385]
[1751194418857,0.11024782,2458.2,2457.5,4.06914297]
[1751194418858,0.7508,2457.6,2457.5,4.06914297]
[1751194419086,0.7508,2457.6,2457.5,6.575]
[1751194419496,0.7508,2457.6,2457.5,10.64417599]
[1751194419667,0.7508,2457.6,2457.5,11.19417599]
[1751194420718,0.8116,2458.0,2457.9,0.55]
[1751194420906,0.8116,2458.0,2457.9,7.127]
[1751194421121,0.8116,2458.0,2457.9,11.19551377]
[1751194421307,0.8116,2458.0,2457.9,7.127]
[1751194421517,0.8116,2458.1,2458.0,4.61824638]
[1751194424023,0.11024782,2458.2,2458.1,4.61818274]
[1751194424212,0.11024782,2458.2,2458.1,11.20118274]
[1751194429636,0.11024782,2458.2,2458.1,11.97338274]
[1751194433811,0.11024782,2458.2,2458.1,10.65118274]
[1751194434013,0.11024782,2458.2,2458.1,12.49472565]
[1751194434219,0.11024782,2458.2,2458.1,13.04472565]
[1751194435112,0.11024782,2458.2,2458.1,14.73972565]
[1751194435326,0.11024782,2458.2,2458.1,4.82138274]
[1751194435513,0.11024782,2458.2,2458.1,11.41938274]
[1751194436017,0.11024782,2458.2,2458.1,4.82138274]
[1751194436501,0.11024782,2458.2,2457.9,1.684]
[1751194436707,0.7676,2458.1,2458.0,10.86953052]
[1751194437026,0.7676,2458.1,2458.0,7.3512]
[1751194437226,0.7676,2458.1,2458.0,11.41954825]
[1751194439136,0.7676,2458.1,2457.2,0.7854]
[1751194439306,0.7676,2458.1,2457.8,4.06858404]
[1751194439507,0.7676,2458.1,2458.0,0.55]
[1751194441039,0.7676,2458.1,2458.0,7.161]
[1751194441349,1.282512,2458.1,2458.0,7.161]
[1751194441648,1.282512,2458.1,2458.0,0.55]
[1751194441814,1.282512,2458.1,2458.0,7.16]
[1751194442009,1.282512,2458.1,2458.0,6.61]
[1751194442423,5.35069474,2458.1,2458.0,6.61]
[1751194442634,1.282512,2458.1,2458.0,6.61]
[1751194442853,1.282512,2458.1,2457.7,4.06882848]
[1751194443161,0.2032,2458.0,2457.9,4.61851377]
[1751194443330,0.7676,2458.1,2458.0,0.55]
[1751194443660,0.7676,2458.1,2458.0,11.22834825]
[1751194444421,0.11024782,2458.2,2458.1,4.61818274]
[1751194444627,0.11024782,2458.2,2458.1,0.55]
[1751194445247,0.11024782,2458.2,2458.1,4.61818274]
[1751194448985,0.11024782,2458.2,2458.1,0.55]
[1751194449163,0.90794782,2458.2,2458.1,7.159]
[1751194449349,1.4258399,2458.2,2458.1,6.608]
[1751194450755,0.90794782,2458.2,2458.1,6.608]
[1751194454009,4.97596506,2458.2,2458.1,6.608]
[1751194455751,0.2032,2458.1,2457.8,0.55]
[1751194455953,4.27138998,2458.1,2457.8,0.55]
[1751194456154,0.9959,2458.0,2457.9,6.604]
[1751194456390,0.9959,2458.0,2457.1,4.06976135]
[1751194456391,0.7927,2457.7,2457.1,4.06976135]
[1751194456699,0.7927,2457.7,2457.3,4.06942745]
[1751194456855,0.9959,2457.7,2457.3,4.06942745]
[1751194457052,0.9959,2457.7,2457.4,0.55]
[1751194457768,0.2032,2457.7,2457.4,0.55]
[1751194457967,0.1032,2457.7,2457.4,4.61933323]
[1751194458369,0.1032,2457.7,2457.4,0.55]
[1751194458899,0.1032,2457.7,2457.5,6.616]
[1751194462488,0.1032,2457.7,2457.6,0.55]
[1751194465197,0.9959,2457.9,2457.6,0.55]
[1751194467193,0.9959,2457.9,2457.6,4.61898579]
[1751194468192,5.06442517,2457.9,2457.6,0.55]
[1751194468867,0.9959,2457.9,2457.6,0.55]
[1751194470119,0.9959,2457.9,2457.8,0.55]
[1751194470321,0.92244782,2458.2,2457.8,6.609]
[1751194470501,0.2032,2458.0,2457.8,10.67759653]
[1751194470700,0.2032,2458.0,2457.9,4.61851377]
[1751194471620,0.2032,2458.0,2457.9,0.55]
[1751194474596,0.2032,2458.0,2457.9,4.61851377]
[1751194474795,0.2032,2458.0,2457.9,0.55]
[1751194475008,0.2032,2458.0,2457.9,4.61851377]
[1751194476228,0.2032,2458.0,2457.9,0.55]
[1751194478269,0.2032,2458.0,2457.9,6.604]
[1751194479251,0.2032,2458.0,2457.7,0.55]
[1751194479421,0.7677,2457.9,2457.8,6.604]
[1751194479623,5.03945668,2457.9,2457.6,0.55]
[1751194479817,4.83625668,2457.9,2457.7,6.604]
[1751194480045,0.2032,2457.8,2457.7,6.604]
[1751194481157,0.2032,2457.8,2457.7,7.154]
[1751194482656,0.2032,2457.8,2457.7,0.55]
[1751194482859,4.27198237,2457.8,2457.3,4.27262738]
[1751194483161,4.06885078,2457.7,2457.4,7.153]
[1751194483354,0.70716824,2457.8,2457.3,0.2032]